[Event "*** Titled Tuesday Blitz"]
[Site "Chess.com"]
[Date "2019.11.05"]
[Round "2"]
[White "orrbaverlekszarnyon"]
[Black "GelmanAlexander"]
[Result "0-1"]
[WhiteElo "2212"]
[BlackElo "2494"]
[TimeControl "180+2"]
[EndTime "13:19:16 PST"]
[Termination "GelmanAlexander won by resignation"]

1. e4 {[%clk 0:03:01.9]} 1... d5 {[%clk 0:03:00.3]} 2. exd5 {[%clk 0:02:58.5]}
2... Qxd5 {[%clk 0:03:02.2]} 3. c4 {[%clk 0:02:59.3]} 3... Qe4+ {[%clk
0:02:49.5]} 4. Qe2 {[%clk 0:02:57.9]} 4... Qxe2+ {[%clk 0:02:04]} 5. Bxe2 {[%clk
0:02:57.1]} 5... e5 {[%clk 0:02:04.5]} 6. Nf3 {[%clk 0:02:57.1]} 6... Nc6 {[%clk
0:02:05]} 7. Nc3 {[%clk 0:02:57]} 7... Bf5 {[%clk 0:02:04.6]} 8. O-O {[%clk
0:02:57.2]} 8... O-O-O {[%clk 0:02:04.7]} 9. a3 {[%clk 0:02:56.6]} 9... Bc5
{[%clk 0:01:49.3]} 10. b4 {[%clk 0:02:55.6]} 10... Bd4 {[%clk 0:01:50.7]} 11. b5
{[%clk 0:02:51]} 11... Na5 {[%clk 0:01:49.3]} 12. h3 {[%clk 0:02:37.7]} 12...
Nf6 {[%clk 0:01:47.7]} 13. Ng5 {[%clk 0:02:31.3]} 13... Bg6 {[%clk 0:01:39.8]}
14. Bf3 {[%clk 0:02:29.2]} 14... Bxc3 {[%clk 0:01:25.7]} 15. dxc3 {[%clk
0:02:30]} 15... h6 {[%clk 0:01:27.3]} 0-1

[Event "*** Titled Tuesday Blitz"]
[Site "Chess.com"]
[Date "2019.11.05"]
[Round "2"]
[White "Godzillator"]
[Black "pedromartinez91"]
[Result "1-0"]
[WhiteElo "2303"]
[BlackElo "2500"]
[TimeControl "180+2"]
[EndTime "13:19:45 PST"]
[Termination "Godzillator won by resignation"]

1. d4 {[%clk 0:03:01.9]} 1... Nf6 {[%clk 0:02:58.7]} 2. c4 {[%clk 0:03:03.2]}
2... g6 {[%clk 0:02:59.5]} 3. Nc3 {[%clk 0:03:04.4]} 3... Bg7 {[%clk 0:03:00.3]}
4. e4 {[%clk 0:03:05.6]} 4... O-O {[%clk 0:03:00.2]} 5. Be2 {[%clk 0:03:06.9]}
5... c6 {[%clk 0:03:01.4]} 6. e5 {[%clk 0:03:06.3]} 6... Ne8 {[%clk 0:03:01.6]}
7. f4 {[%clk 0:03:06.8]} 7... d6 {[%clk 0:03:02.4]} 8. Nf3 {[%clk 0:03:07.6]}
8... Bg4 {[%clk 0:03:02.6]} 9. Be3 {[%clk 0:03:07.1]} 9... Na6 {[%clk 0:03:03]}
10. O-O {[%clk 0:03:06.9]} 10... dxe5 {[%clk 0:02:56.2]} 11. dxe5 {[%clk
0:03:07.3]} 11... Nec7 {[%clk 0:02:39]} 12. a3 {[%clk 0:03:03]} 12... Ne6 {[%clk
0:02:25.7]} 13. h3 {[%clk 0:03:02.3]} 13... Bxf3 {[%clk 0:02:26.4]} 14. Bxf3
{[%clk 0:03:03.3]} 14... Bh6 {[%clk 0:02:09.7]} 15. g3 {[%clk 0:03:02.4]} 15...
f6 {[%clk 0:01:46.7]} 16. exf6 {[%clk 0:02:51.5]} 16... exf6 {[%clk 0:01:48.6]}
17. Ne4 {[%clk 0:02:51.5]} 17... Rf7 {[%clk 0:01:33.5]} 18. Qxd8+ {[%clk
0:02:48.9]} 18... Rxd8 {[%clk 0:01:34]} 19. Rad1 {[%clk 0:02:49.8]} 19... Rfd7
{[%clk 0:01:34.6]} 20. Rxd7 {[%clk 0:02:48.9]} 20... Rxd7 {[%clk 0:01:35.6]} 21.
Nxf6+ {[%clk 0:02:50.1]} 21... Kf7 {[%clk 0:01:36]} 22. Nxd7 {[%clk 0:02:51.3]}
22... Bg7 {[%clk 0:01:34.9]} 23. Ne5+ {[%clk 0:02:51.8]} 23... Ke8 {[%clk
0:01:34.3]} 24. Bg4 {[%clk 0:02:50.9]} 24... Nec7 {[%clk 0:01:21.7]} 25. Bxa7
{[%clk 0:02:46.3]} 25... h5 {[%clk 0:01:20.8]} 26. Bd7+ {[%clk 0:02:44.4]} 26...
Ke7 {[%clk 0:01:20.9]} 27. Bc8 {[%clk 0:02:45]} 1-0

[Event "*** Titled Tuesday Blitz"]
[Site "Chess.com"]
[Date "2019.11.05"]
[Round "2"]
[White "bilelou"]
[Black "Gordima"]
[Result "0-1"]
[WhiteElo "2551"]
[BlackElo "2794"]
[TimeControl "180+2"]
[EndTime "13:20:06 PST"]
[Termination "Gordima won by resignation"]

1. e4 {[%clk 0:03:01.9]} 1... c6 {[%clk 0:03:01.9]} 2. d4 {[%clk 0:03:01.6]}
2... d5 {[%clk 0:03:03.8]} 3. e5 {[%clk 0:03:00.7]} 3... Bf5 {[%clk 0:03:04.9]}
4. h4 {[%clk 0:03:01.7]} 4... Qb6 {[%clk 0:03:05]} 5. g4 {[%clk 0:02:57.7]} 5...
Bd7 {[%clk 0:03:05.9]} 6. h5 {[%clk 0:02:55.2]} 6... e6 {[%clk 0:03:06.3]} 7. f4
{[%clk 0:02:55.8]} 7... c5 {[%clk 0:03:07.2]} 8. Nf3 {[%clk 0:02:54.9]} 8... Nc6
{[%clk 0:03:07.7]} 9. c3 {[%clk 0:02:50.5]} 9... Nh6 {[%clk 0:03:08.3]} 10. Bh3
{[%clk 0:02:47.6]} 10... Rc8 {[%clk 0:03:07.8]} 11. g5 {[%clk 0:02:43.9]} 11...
Nf5 {[%clk 0:03:06.1]} 12. Bxf5 {[%clk 0:02:44.9]} 12... exf5 {[%clk 0:03:08]}
13. Rh2 {[%clk 0:02:44.2]} 13... cxd4 {[%clk 0:02:59.3]} 14. cxd4 {[%clk
0:02:46.1]} 14... Nxd4 {[%clk 0:02:58.8]} 15. Nxd4 {[%clk 0:02:43.5]} 15... Rxc1
{[%clk 0:02:59.7]} 16. Qxc1 {[%clk 0:02:44.8]} 16... Qxd4 {[%clk 0:03:01.3]} 17.
Kf1 {[%clk 0:02:35.5]} 17... Bc5 {[%clk 0:02:52.9]} 18. Kg2 {[%clk 0:02:29.6]}
18... Qf2+ {[%clk 0:02:20.8]} 19. Kh1 {[%clk 0:02:27.3]} 19... Qf3+ {[%clk
0:02:22]} 20. Rg2 {[%clk 0:02:27.9]} 20... Qxh5+ {[%clk 0:02:22.9]} 21. Rh2
{[%clk 0:02:29.1]} 21... Qf3+ {[%clk 0:02:24.2]} 22. Rg2 {[%clk 0:02:30.4]}
22... Be3 {[%clk 0:01:52]} 23. Qe1 {[%clk 0:02:23.9]} 23... d4 {[%clk
0:01:25.6]} 24. Qg3 {[%clk 0:02:19]} 24... Qh5+ {[%clk 0:01:20.2]} 0-1

[Event "*** Titled Tuesday Blitz"]
[Site "Chess.com"]
[Date "2019.11.05"]
[Round "2"]
[White "GrandGlacier"]
[Black "Barcelona_Guy"]
[Result "0-1"]
[WhiteElo "2524"]
[BlackElo "2748"]
[TimeControl "180+2"]
[EndTime "13:20:23 PST"]
[Termination "Barcelona_Guy won by resignation"]

1. e4 {[%clk 0:03:01.7]} 1... e5 {[%clk 0:02:59.4]} 2. Nf3 {[%clk 0:03:02.8]}
2... Nc6 {[%clk 0:02:58.6]} 3. Bb5 {[%clk 0:03:04.1]} 3... a6 {[%clk 0:02:59.7]}
4. Ba4 {[%clk 0:03:05.2]} 4... Nf6 {[%clk 0:03:00.7]} 5. O-O {[%clk 0:03:05.6]}
5... Nxe4 {[%clk 0:03:01.8]} 6. d4 {[%clk 0:03:06.2]} 6... b5 {[%clk 0:03:03.2]}
7. Bb3 {[%clk 0:03:07]} 7... d5 {[%clk 0:03:04.8]} 8. dxe5 {[%clk 0:03:08.1]}
8... Be6 {[%clk 0:03:06.4]} 9. Nbd2 {[%clk 0:03:08.7]} 9... Nc5 {[%clk
0:03:07.1]} 10. c3 {[%clk 0:03:09.5]} 10... Be7 {[%clk 0:03:08.6]} 11. Re1
{[%clk 0:03:09.8]} 11... O-O {[%clk 0:02:49.1]} 12. Nd4 {[%clk 0:03:08.4]} 12...
Nxd4 {[%clk 0:02:47.5]} 13. cxd4 {[%clk 0:03:09.2]} 13... Nd3 {[%clk 0:02:48.8]}
14. Re3 {[%clk 0:03:09.7]} 14... Nxc1 {[%clk 0:02:47.2]} 15. Rxc1 {[%clk
0:03:11.4]} 15... Rc8 {[%clk 0:02:40.8]} 16. Rec3 {[%clk 0:02:51.9]} 16... a5
{[%clk 0:02:40.8]} 17. a3 {[%clk 0:02:46.8]} 17... a4 {[%clk 0:02:36.9]} 18. Ba2
{[%clk 0:02:44.2]} 18... c5 {[%clk 0:02:23.1]} 19. dxc5 {[%clk 0:02:42.7]} 19...
d4 {[%clk 0:02:21.6]} 20. Rg3 {[%clk 0:02:20.6]} 20... Bxa2 {[%clk 0:02:20.1]}
21. Qg4 {[%clk 0:02:21.5]} 21... g6 {[%clk 0:02:19.5]} 22. Ne4 {[%clk
0:02:22.2]} 22... Bd5 {[%clk 0:02:08.3]} 23. Rf3 {[%clk 0:02:08.7]} 23... Bxe4
{[%clk 0:02:01.4]} 24. Qxe4 {[%clk 0:02:09.3]} 24... Rxc5 {[%clk 0:02:02.7]} 25.
Rxc5 {[%clk 0:02:09.3]} 25... Bxc5 {[%clk 0:02:04.6]} 26. e6 {[%clk 0:02:08.1]}
26... Qe7 {[%clk 0:01:57]} 27. Qc6 {[%clk 0:01:57.9]} 27... Qxe6 {[%clk
0:01:51.8]} 28. Qxb5 {[%clk 0:01:56.6]} 28... Qe1+ {[%clk 0:01:47.2]} 29. Qf1
{[%clk 0:01:57.3]} 29... Qxf1+ {[%clk 0:01:48.7]} 30. Kxf1 {[%clk 0:01:59.2]}
30... Rb8 {[%clk 0:01:50.1]} 0-1

[Event "*** Titled Tuesday Blitz"]
[Site "Chess.com"]
[Date "2019.11.05"]
[Round "2"]
[White "severomorskij"]
[Black "Aygehovit1992"]
[Result "1-0"]
[WhiteElo "2857"]
[BlackElo "2589"]
[TimeControl "180+2"]
[EndTime "13:20:41 PST"]
[Termination "severomorskij won by resignation"]

1. d4 {[%clk 0:03:01.9]} 1... Nf6 {[%clk 0:03:00.2]} 2. c4 {[%clk 0:03:03.1]}
2... g6 {[%clk 0:03:01]} 3. f3 {[%clk 0:03:04.3]} 3... Bg7 {[%clk 0:03:02.3]} 4.
e4 {[%clk 0:03:04.4]} 4... O-O {[%clk 0:03:03.9]} 5. Nc3 {[%clk 0:03:05.6]} 5...
d6 {[%clk 0:03:04.5]} 6. Be3 {[%clk 0:03:06.7]} 6... b6 {[%clk 0:03:04.9]} 7.
Bd3 {[%clk 0:02:58.8]} 7... Nbd7 {[%clk 0:02:48.4]} 8. Nge2 {[%clk 0:02:53]}
8... c5 {[%clk 0:02:49.3]} 9. O-O {[%clk 0:02:54]} 9... e5 {[%clk 0:02:41]} 10.
d5 {[%clk 0:02:51.1]} 10... Ne8 {[%clk 0:02:40.2]} 11. Ng3 {[%clk 0:02:44]}
11... h5 {[%clk 0:02:36.1]} 12. Qd2 {[%clk 0:02:44.4]} 12... h4 {[%clk
0:02:35.6]} 13. Nge2 {[%clk 0:02:29.9]} 13... f5 {[%clk 0:02:36.4]} 14. f4
{[%clk 0:02:31.2]} 14... exf4 {[%clk 0:02:34.8]} 15. Nxf4 {[%clk 0:02:30.9]}
15... Ne5 {[%clk 0:02:35.3]} 16. Ne6 {[%clk 0:02:27.3]} 16... Bxe6 {[%clk
0:02:35.5]} 17. dxe6 {[%clk 0:02:29.2]} 17... Nc7 {[%clk 0:02:30]} 18. exf5
{[%clk 0:02:29.2]} 18... gxf5 {[%clk 0:02:30.8]} 19. Bg5 {[%clk 0:02:26.9]}
19... Qe8 {[%clk 0:02:25.2]} 20. e7 {[%clk 0:02:26.6]} 20... Rf7 {[%clk
0:02:22.4]} 21. Bxf5 {[%clk 0:02:26.8]} 21... Nxc4 {[%clk 0:01:25.7]} 22. Qe2
{[%clk 0:02:23.8]} 22... d5 {[%clk 0:01:08.6]} 23. Nxd5 {[%clk 0:02:15]} 23...
Nxd5 {[%clk 0:01:03.8]} 24. Qxc4 {[%clk 0:02:14.4]} 24... Nxe7 {[%clk
0:01:04.6]} 25. Be6 {[%clk 0:02:11.4]} 1-0

[Event "*** Titled Tuesday Blitz"]
[Site "Chess.com"]
[Date "2019.11.05"]
[Round "2"]
[White "JakubPulpan"]
[Black "Knight8700"]
[Result "1/2-1/2"]
[WhiteElo "2712"]
[BlackElo "2436"]
[TimeControl "180+2"]
[EndTime "13:20:46 PST"]
[Termination "Game drawn by agreement"]

1. e4 {[%clk 0:03:01.9]} 1... e5 {[%clk 0:02:59.8]} 2. Nf3 {[%clk 0:03:01.4]}
2... Nc6 {[%clk 0:03:00]} 3. Bb5 {[%clk 0:03:02.9]} 3... a6 {[%clk 0:02:58.7]}
4. Ba4 {[%clk 0:03:03.9]} 4... Nf6 {[%clk 0:03:00]} 5. O-O {[%clk 0:03:04.2]}
5... Nxe4 {[%clk 0:02:58.9]} 6. d4 {[%clk 0:03:05.8]} 6... b5 {[%clk 0:02:59.3]}
7. Bb3 {[%clk 0:03:07.4]} 7... d5 {[%clk 0:03:00.7]} 8. dxe5 {[%clk 0:03:05.7]}
8... Be6 {[%clk 0:03:00.5]} 9. Re1 {[%clk 0:03:06]} 9... Bc5 {[%clk 0:02:56.5]}
10. Be3 {[%clk 0:03:06.7]} 10... O-O {[%clk 0:02:57.5]} 11. c3 {[%clk
0:03:07.4]} 11... Bxe3 {[%clk 0:02:50.5]} 12. Rxe3 {[%clk 0:03:09.3]} 12... Kh8
{[%clk 0:02:47.5]} 13. Nbd2 {[%clk 0:03:09.4]} 13... Nc5 {[%clk 0:02:45.5]} 14.
Bc2 {[%clk 0:03:08.6]} 14... d4 {[%clk 0:02:45.1]} 15. cxd4 {[%clk 0:03:07.7]}
15... Nxd4 {[%clk 0:02:47]} 16. Nxd4 {[%clk 0:02:58]} 16... Qxd4 {[%clk
0:02:46.3]} 17. Ne4 {[%clk 0:02:59.9]} 17... Qxd1+ {[%clk 0:02:45]} 18. Rxd1
{[%clk 0:03:00.4]} 18... Nxe4 {[%clk 0:02:46.5]} 19. Bxe4 {[%clk 0:02:58.5]}
19... Rad8 {[%clk 0:02:42.9]} 20. Red3 {[%clk 0:02:55]} 20... Rxd3 {[%clk
0:02:33.4]} 21. Rxd3 {[%clk 0:02:56.9]} 21... Bxa2 {[%clk 0:02:09.7]} 22. Ra3
{[%clk 0:02:57.1]} 22... Rd8 {[%clk 0:02:09.5]} 23. h3 {[%clk 0:02:53.4]} 23...
Bb1 {[%clk 0:02:09.6]} 24. Bxb1 {[%clk 0:02:51.7]} 24... Rd1+ {[%clk 0:02:10.2]}
25. Kh2 {[%clk 0:02:53.6]} 25... Rxb1 {[%clk 0:02:11.7]} 26. Rxa6 {[%clk
0:02:55.5]} 26... g6 {[%clk 0:02:10.5]} 27. Ra7 {[%clk 0:02:25]} 27... Rxb2
{[%clk 0:01:34.8]} 28. Rxc7 {[%clk 0:02:25.3]} 28... Rxf2 {[%clk 0:01:36.2]} 29.
Rb7 {[%clk 0:02:26.8]} 29... Kg7 {[%clk 0:01:22.3]} 30. e6 {[%clk 0:02:24.3]}
30... Rf6 {[%clk 0:01:09.4]} 1/2-1/2

[Event "*** Titled Tuesday Blitz"]
[Site "Chess.com"]
[Date "2019.11.05"]
[Round "2"]
[White "Feegus"]
[Black "chessasuke"]
[Result "1-0"]
[WhiteElo "2359"]
[BlackElo "2608"]
[TimeControl "180+2"]
[EndTime "13:21:20 PST"]
[Termination "Feegus won by resignation"]

1. Nf3 {[%clk 0:03:01.9]} 1... e6 {[%clk 0:03:00.9]} 2. g3 {[%clk 0:02:46]} 2...
b6 {[%clk 0:03:00.6]} 3. Bg2 {[%clk 0:02:46.5]} 3... Bb7 {[%clk 0:03:01.1]} 4.
O-O {[%clk 0:02:48.4]} 4... Nf6 {[%clk 0:03:02]} 5. d3 {[%clk 0:02:49.6]} 5...
c5 {[%clk 0:03:02.2]} 6. Nbd2 {[%clk 0:02:51.5]} 6... Be7 {[%clk 0:03:02.9]} 7.
e4 {[%clk 0:02:53.1]} 7... d6 {[%clk 0:03:03.9]} 8. c3 {[%clk 0:02:53.9]} 8...
O-O {[%clk 0:03:03.6]} 9. a4 {[%clk 0:02:55.8]} 9... Nc6 {[%clk 0:03:02.5]} 10.
Re1 {[%clk 0:02:57.7]} 10... Nd7 {[%clk 0:03:03.1]} 11. Nc4 {[%clk 0:02:57.8]}
11... Re8 {[%clk 0:02:59.9]} 12. h4 {[%clk 0:02:59]} 12... h6 {[%clk 0:02:59.8]}
13. Bf4 {[%clk 0:02:56.5]} 13... Nf8 {[%clk 0:02:52.1]} 14. h5 {[%clk
0:02:53.3]} 14... Nh7 {[%clk 0:02:36.2]} 15. e5 {[%clk 0:02:54]} 15... dxe5
{[%clk 0:02:33.9]} 16. Nfxe5 {[%clk 0:02:55]} 16... Rc8 {[%clk 0:02:34.5]} 17.
Nxf7 {[%clk 0:02:38.1]} 17... Kxf7 {[%clk 0:02:31.8]} 18. Qg4 {[%clk 0:02:40]}
18... Nf8 {[%clk 0:02:29]} 19. Bxc6 {[%clk 0:02:34.5]} 19... Bxc6 {[%clk
0:02:27.9]} 20. Ne5+ {[%clk 0:02:36.4]} 20... Kg8 {[%clk 0:02:29]} 21. Bxh6
{[%clk 0:02:36.1]} 21... Bf6 {[%clk 0:02:30]} 22. Bxg7 {[%clk 0:02:37.5]} 22...
Bxg7 {[%clk 0:02:29]} 23. h6 {[%clk 0:02:39.4]} 23... Qf6 {[%clk 0:02:30]} 24.
hxg7 {[%clk 0:02:34.3]} 24... Qxg7 {[%clk 0:02:30.8]} 25. Qh5 {[%clk 0:02:36]}
25... Ba8 {[%clk 0:02:29.9]} 26. a5 {[%clk 0:02:30.4]} 26... b5 {[%clk
0:02:29.2]} 27. Re3 {[%clk 0:02:11.7]} 27... Red8 {[%clk 0:02:28.1]} 28. Rae1
{[%clk 0:02:06]} 28... Rd5 {[%clk 0:02:28.4]} 29. Re4 {[%clk 0:02:01.8]} 29...
Rxe5 {[%clk 0:02:02.6]} 30. Rxe5 {[%clk 0:02:03.2]} 30... Nh7 {[%clk 0:01:54]}
31. Rxe6 {[%clk 0:02:00.5]} 31... Nf6 {[%clk 0:01:49.8]} 32. Rxf6 {[%clk
0:02:02.1]} 32... Qxf6 {[%clk 0:01:50.5]} 33. Qg4+ {[%clk 0:02:03.9]} 33... Kh7
{[%clk 0:01:44.5]} 34. Qxc8 {[%clk 0:02:04.7]} 34... Qf3 {[%clk 0:01:45.7]} 35.
Re7+ {[%clk 0:01:57.3]} 1-0

[Event "*** Titled Tuesday Blitz"]
[Site "Chess.com"]
[Date "2019.11.05"]
[Round "2"]
[White "Drags95"]
[Black "nocnypako"]
[Result "1-0"]
[WhiteElo "2775"]
[BlackElo "2545"]
[TimeControl "180+2"]
[EndTime "13:21:25 PST"]
[Termination "Drags95 won on time"]

1. d4 {[%clk 0:03:01.9]} 1... Nf6 {[%clk 0:02:41]} 2. c4 {[%clk 0:03:00.7]} 2...
g6 {[%clk 0:02:41.1]} 3. Nf3 {[%clk 0:02:55.7]} 3... Bg7 {[%clk 0:02:40.3]} 4.
g3 {[%clk 0:02:57.2]} 4... d5 {[%clk 0:02:41]} 5. cxd5 {[%clk 0:02:57.5]} 5...
Nxd5 {[%clk 0:02:42.7]} 6. Bg2 {[%clk 0:02:59.2]} 6... Nb6 {[%clk 0:02:44.4]} 7.
O-O {[%clk 0:03:00.2]} 7... Nc6 {[%clk 0:02:46]} 8. e3 {[%clk 0:02:59.6]} 8...
O-O {[%clk 0:02:47.4]} 9. Nc3 {[%clk 0:03:01.1]} 9... Re8 {[%clk 0:02:48]} 10.
a3 {[%clk 0:02:59.1]} 10... e6 {[%clk 0:02:42.5]} 11. b4 {[%clk 0:02:52.7]}
11... a5 {[%clk 0:02:39.1]} 12. b5 {[%clk 0:02:53.2]} 12... Ne7 {[%clk
0:02:39.8]} 13. a4 {[%clk 0:02:52.8]} 13... Nf5 {[%clk 0:02:33.1]} 14. Qb3
{[%clk 0:02:51.5]} 14... Nd6 {[%clk 0:02:13.7]} 15. Ne5 {[%clk 0:02:49.3]} 15...
Bxe5 {[%clk 0:01:57.8]} 16. dxe5 {[%clk 0:02:51.2]} 16... Ndc4 {[%clk 0:01:59]}
17. f4 {[%clk 0:02:51.7]} 17... Qe7 {[%clk 0:01:50.1]} 18. Rd1 {[%clk 0:02:51]}
18... Kg7 {[%clk 0:01:24.5]} 19. Rd4 {[%clk 0:02:46.9]} 19... Qb4 {[%clk
0:01:14.6]} 20. Rb1 {[%clk 0:02:25.3]} 20... Qxb3 {[%clk 0:00:56.9]} 21. Rxb3
{[%clk 0:02:27.2]} 21... f6 {[%clk 0:00:40.4]} 22. exf6+ {[%clk 0:02:29.1]}
22... Kxf6 {[%clk 0:00:41.6]} 23. Ne4+ {[%clk 0:02:30.7]} 23... Ke7 {[%clk
0:00:20.8]} 24. Rc3 {[%clk 0:02:32.6]} 24... Rd8 {[%clk 0:00:14.1]} 25. Rcxc4
{[%clk 0:02:34]} 25... Nxc4 {[%clk 0:00:14.4]} 26. Rxc4 {[%clk 0:02:35.9]} 26...
Rd1+ {[%clk 0:00:14.8]} 27. Kf2 {[%clk 0:02:37.4]} 27... c6 {[%clk 0:00:14.6]}
28. Ba3+ {[%clk 0:02:30.8]} 1-0

[Event "*** Titled Tuesday Blitz"]
[Site "Chess.com"]
[Date "2019.11.05"]
[Round "2"]
[White "jefferyx"]
[Black "Bathory44"]
[Result "1-0"]
[WhiteElo "2937"]
[BlackElo "2615"]
[TimeControl "180+2"]
[EndTime "13:21:51 PST"]
[Termination "jefferyx won by resignation"]

1. c4 {[%clk 0:03:01.9]} 1... Nf6 {[%clk 0:03:00.3]} 2. Nc3 {[%clk 0:03:02.4]}
2... g6 {[%clk 0:03:01.9]} 3. e4 {[%clk 0:03:02.9]} 3... d6 {[%clk 0:03:02.8]}
4. d4 {[%clk 0:03:04]} 4... Bg7 {[%clk 0:03:04.4]} 5. Be2 {[%clk 0:03:05.3]}
5... O-O {[%clk 0:03:05.6]} 6. Be3 {[%clk 0:03:06.7]} 6... e5 {[%clk 0:02:59.9]}
7. d5 {[%clk 0:03:07.5]} 7... Na6 {[%clk 0:03:01.1]} 8. Nf3 {[%clk 0:02:52.4]}
8... Nc5 {[%clk 0:02:48.7]} 9. Nd2 {[%clk 0:02:53.1]} 9... a5 {[%clk 0:02:49.4]}
10. h4 {[%clk 0:02:53.4]} 10... c6 {[%clk 0:02:44.2]} 11. h5 {[%clk 0:02:43.9]}
11... gxh5 {[%clk 0:02:22.2]} 12. Bxc5 {[%clk 0:02:36.7]} 12... dxc5 {[%clk
0:02:22.3]} 13. Bxh5 {[%clk 0:02:38.6]} 13... a4 {[%clk 0:02:08.4]} 14. a3
{[%clk 0:02:37.3]} 14... Qa5 {[%clk 0:01:54.7]} 15. Qf3 {[%clk 0:02:28.3]} 15...
Bd7 {[%clk 0:01:52.9]} 16. Qg3 {[%clk 0:02:21.2]} 16... b5 {[%clk 0:01:44.5]}
17. dxc6 {[%clk 0:02:05.2]} 17... Bxc6 {[%clk 0:01:45.2]} 18. Be2 {[%clk
0:02:02.3]} 18... Bxe4 {[%clk 0:01:29.8]} 19. Ndxe4 {[%clk 0:01:51.4]} 19...
Nxe4 {[%clk 0:01:29.8]} 20. Qh4 {[%clk 0:01:52.9]} 20... Nf6 {[%clk 0:01:18.4]}
21. Kf1 {[%clk 0:01:54]} 21... h6 {[%clk 0:01:04.6]} 22. cxb5 {[%clk 0:01:48.4]}
22... Rfd8 {[%clk 0:01:00.5]} 23. Qg3 {[%clk 0:01:47.4]} 23... Kh8 {[%clk
0:00:46.9]} 24. Qxe5 {[%clk 0:01:47.6]} 24... Re8 {[%clk 0:00:40.5]} 25. Rxh6+
{[%clk 0:01:41.8]} 25... Bxh6 {[%clk 0:00:39]} 26. Qxf6+ {[%clk 0:01:42]} 26...
Bg7 {[%clk 0:00:40.9]} 27. Qxf7 {[%clk 0:01:42.6]} 27... Rf8 {[%clk 0:00:24.5]}
28. Qh5+ {[%clk 0:01:42.7]} 28... Kg8 {[%clk 0:00:26.1]} 29. Bc4+ {[%clk
0:01:43.3]} 1-0

[Event "*** Titled Tuesday Blitz"]
[Site "Chess.com"]
[Date "2019.11.05"]
[Round "2"]
[White "semchik73"]
[Black "FearNoEvil12"]
[Result "1-0"]
[WhiteElo "2402"]
[BlackElo "1949"]
[TimeControl "180+2"]
[EndTime "13:22:08 PST"]
[Termination "semchik73 won by resignation"]

1. Nf3 {[%clk 0:03:01.9]} 1... b5 {[%clk 0:02:59.9]} 2. e3 {[%clk 0:03:02.1]}
2... a6 {[%clk 0:03:01.3]} 3. d4 {[%clk 0:03:03]} 3... Bb7 {[%clk 0:03:02.6]} 4.
c4 {[%clk 0:03:04.6]} 4... bxc4 {[%clk 0:03:02.6]} 5. Bxc4 {[%clk 0:03:06.1]}
5... e6 {[%clk 0:03:04]} 6. Nc3 {[%clk 0:03:07.4]} 6... Nf6 {[%clk 0:03:04.9]}
7. O-O {[%clk 0:03:08.5]} 7... d6 {[%clk 0:03:06.1]} 8. Qe2 {[%clk 0:03:07.7]}
8... Nbd7 {[%clk 0:03:06.6]} 9. e4 {[%clk 0:03:08.3]} 9... h6 {[%clk 0:03:07.2]}
10. e5 {[%clk 0:03:08]} 10... Ng8 {[%clk 0:03:04.1]} 11. exd6 {[%clk 0:03:06.6]}
11... cxd6 {[%clk 0:03:04.2]} 12. Bf4 {[%clk 0:03:05.7]} 12... Ngf6 {[%clk
0:03:03.2]} 13. Rfe1 {[%clk 0:03:01.3]} 13... Be7 {[%clk 0:03:03.4]} 14. Rac1
{[%clk 0:02:53.2]} 14... O-O {[%clk 0:03:03.5]} 15. Bd3 {[%clk 0:02:52.6]} 15...
Nb6 {[%clk 0:02:59.8]} 16. Ne4 {[%clk 0:02:52.7]} 16... Nbd5 {[%clk 0:02:57.9]}
17. Bg3 {[%clk 0:02:48.8]} 17... Qb6 {[%clk 0:02:52.8]} 18. a3 {[%clk
0:02:36.8]} 18... Rac8 {[%clk 0:02:50.8]} 19. Bb1 {[%clk 0:02:25.3]} 19... Rxc1
{[%clk 0:02:46.7]} 20. Rxc1 {[%clk 0:02:25.6]} 20... Rc8 {[%clk 0:02:47.4]} 21.
Rxc8+ {[%clk 0:02:24.1]} 21... Bxc8 {[%clk 0:02:48.6]} 22. Qc2 {[%clk
0:02:22.6]} 22... Bb7 {[%clk 0:02:49.2]} 23. b4 {[%clk 0:02:15.6]} 23... Nxe4
{[%clk 0:02:45.1]} 24. Qxe4 {[%clk 0:02:15.4]} 24... Nf6 {[%clk 0:02:46.5]} 25.
Qd3 {[%clk 0:02:08.6]} 25... Be4 {[%clk 0:02:44.4]} 26. Qd1 {[%clk 0:02:05.8]}
26... Bxb1 {[%clk 0:02:44.3]} 27. Qxb1 {[%clk 0:02:06.2]} 27... Qc6 {[%clk
0:02:41.4]} 28. h3 {[%clk 0:02:04]} 28... Qc3 {[%clk 0:02:40.5]} 29. a4 {[%clk
0:02:03.7]} 29... Nd5 {[%clk 0:02:38.4]} 30. b5 {[%clk 0:02:04.4]} 30... axb5
{[%clk 0:02:38.2]} 31. axb5 {[%clk 0:02:05.8]} 31... Qb4 {[%clk 0:02:30.8]} 32.
Qxb4 {[%clk 0:02:04.8]} 32... Nxb4 {[%clk 0:02:31.5]} 33. b6 {[%clk 0:02:05.9]}
33... Nc6 {[%clk 0:02:27.7]} 34. Nd2 {[%clk 0:02:04.8]} 34... Kf8 {[%clk
0:02:27]} 35. Nc4 {[%clk 0:02:05.4]} 35... Nxd4 {[%clk 0:02:19.5]} 36. Nxd6
{[%clk 0:02:00.4]} 36... Ne2+ {[%clk 0:02:17.5]} 37. Kh2 {[%clk 0:02:00.5]}
37... Nxg3 {[%clk 0:02:18.8]} 38. Nc8 {[%clk 0:02:01.7]} 38... Bd8 {[%clk
0:02:01.7]} 39. Kxg3 {[%clk 0:01:53.6]} 39... Ke8 {[%clk 0:02:03]} 40. Nd6+
{[%clk 0:01:54.2]} 40... Ke7 {[%clk 0:02:03.1]} 41. Nc4 {[%clk 0:01:55.1]} 41...
Kd7 {[%clk 0:02:02.5]} 42. Ne5+ {[%clk 0:01:55.6]} 42... Kc8 {[%clk 0:01:54.1]}
43. Nxf7 {[%clk 0:01:55.2]} 43... Bf6 {[%clk 0:01:54.5]} 44. Nd6+ {[%clk
0:01:53.1]} 44... Kb8 {[%clk 0:01:55.3]} 45. f4 {[%clk 0:01:51.2]} 45... Bd8
{[%clk 0:01:53.4]} 46. Nc4 {[%clk 0:01:50.1]} 46... Kb7 {[%clk 0:01:53.3]} 47.
Kg4 {[%clk 0:01:51.1]} 47... g6 {[%clk 0:01:51.6]} 48. h4 {[%clk 0:01:49.7]}
48... Bxb6 {[%clk 0:01:51.2]} 49. Nxb6 {[%clk 0:01:50.1]} 49... Kxb6 {[%clk
0:01:52]} 50. h5 {[%clk 0:01:51.4]} 50... gxh5+ {[%clk 0:01:51.7]} 51. Kxh5
{[%clk 0:01:52.3]} 51... Kc5 {[%clk 0:01:53.1]} 52. Kxh6 {[%clk 0:01:52.6]}
52... Kd5 {[%clk 0:01:54.5]} 53. g4 {[%clk 0:01:53.8]} 53... Ke4 {[%clk
0:01:55.4]} 54. g5 {[%clk 0:01:55.1]} 54... Kxf4 {[%clk 0:01:56.5]} 55. g6
{[%clk 0:01:56.6]} 55... e5 {[%clk 0:01:57.7]} 56. g7 {[%clk 0:01:58]} 56... e4
{[%clk 0:01:59.3]} 57. g8=Q {[%clk 0:01:59.1]} 57... e3 {[%clk 0:02:00.9]} 58.
Qg1 {[%clk 0:02:00.2]} 58... Kf3 {[%clk 0:02:01]} 59. Qe1 {[%clk 0:02:01.4]}
59... e2 {[%clk 0:02:02]} 60. Kg5 {[%clk 0:02:02.1]} 60... Ke3 {[%clk
0:02:02.8]} 61. Kg4 {[%clk 0:02:03.1]} 1-0